bitfinex/quotes_SOLUSD_20260113
["timestamp","ask_amount","ask_price","bid_price","bid_amount"]
[1768289160409,0.07439041,140.5,140.47,0.66333619]
[1768289161139,0.76725889,140.5,140.47,0.66333619]
[1768289161724,0.1,140.52,140.49,0.66333619]
[1768289162826,0.79286848,140.52,140.49,0.66333619]
[1768289163022,0.69286848,140.51,140.48,0.66333619]
[1768289163734,0.69286848,140.51,140.48,0.60333619]
[1768289167835,0.69286848,140.51,140.48,7.72153046]
[1768289170436,0.78228046,140.52,140.49,0.68736981]
[1768289171148,0.1,140.52,140.49,0.68736981]
[1768289171934,2.86266064,140.52,140.49,0.68736981]
[1768289172441,9.97918205,140.52,140.48,0.68736981]
[1768289172928,2.76266064,140.5,140.46,7.80682479]
[1768289177235,2.76266064,140.5,140.47,0.70954581]
[1768289177420,0.68228046,140.5,140.47,0.70954581]
[1768289177743,0.68228046,140.5,140.46,7.82900079]
[1768289179741,0.68228046,140.5,140.47,0.70954581]
[1768289180623,0.67253972,140.48,140.45,7.8295163]
[1768289180938,2.7529199,140.48,140.45,7.8295163]
[1768289181328,0.67253972,140.48,140.45,7.8295163]
[1768289183244,0.67253972,140.48,140.44,7.83001765]
[1768289184248,0.67253972,140.48,140.45,7.11991805]
[1768289184429,0.67253972,140.5,140.46,0.70954581]
[1768289184634,16.91889198,140.5,140.46,0.70954581]
[1768289184835,0.67253972,140.49,140.46,0.70954581]
[1768289186151,0.67253972,140.49,140.46,7.82885054]
[1768289186354,13.67253972,140.5,140.46,7.82885054]
[1768289186848,0.67253972,140.49,140.46,7.82885054]
[1768289187048,0.67253972,140.49,140.45,11.07569012]
[1768289187933,0.67253972,140.49,140.45,7.82933786]
[1768289188138,0.67253972,140.49,140.45,11.07569012]
[1768289188448,0.67253972,140.49,140.44,7.12031712]
[1768289188449,0.67253972,140.47,140.44,7.12031712]
[1768289188663,0.64253973,140.47,140.44,7.12031712]
[1768289189451,3.24635226,140.48,140.44,7.12031712]
[1768289189452,3.24635226,140.48,140.44,7.82986293]
[1768289190748,3.91889198,140.48,140.44,7.82986293]
[1768289193457,0.67253972,140.48,140.44,7.82986293]
[1768289198144,3.91889198,140.48,140.44,7.82986293]
[1768289198460,3.9708882,140.47,140.44,0.70954581]
[1768289198658,0.72453594,140.47,140.44,0.70954581]
[1768289200160,0.72453594,140.47,140.44,7.82997022]
[1768289200456,0.72453594,140.48,140.44,7.82997022]
[1768289210268,11.08935662,140.48,140.44,0.70954581]
[1768289211373,11.08935662,140.48,140.4,3.24635226]
[1768289211374,0.099,140.44,140.37,0.69622111]
[1768289211579,31.76482068,140.48,140.39,0.69622111]
[1768289211580,59.00358808,140.48,140.39,0.69622111]
[1768289211743,3.24635226,140.44,140.4,0.69622111]
[1768289211942,16.24635226,140.44,140.4,0.69622111]
[1768289212141,16.24635226,140.44,140.37,7.12387554]
[1768289212142,3.24635226,140.41,140.35,0.69622111]
[1768289212350,3.24635226,140.38,140.35,0.69622111]
[1768289212650,16.24635226,140.4,140.29,0.2]
[1768289212651,6.49270452,140.36,140.29,0.2]
[1768289212964,3.24635226,140.31,140.29,0.2]
[1768289213191,6.49270452,140.3,140.24,0.2]
[1768289213364,3.24635226,140.25,140.22,7.82737577]
[1768289213685,3.24635226,140.25,140.2,0.2]
[1768289213686,3.24635226,140.23,140.2,0.2]
[1768289213865,3.24635226,140.22,140.2,0.2]
[1768289214270,3.24635226,140.24,140.2,0.2]
[1768289214557,3.24635226,140.23,140.2,0.2]
[1768289214974,3.24635226,140.24,140.2,7.33262572]
[1768289215379,3.24635226,140.25,140.2,8.02884683]
[1768289215686,3.24635226,140.24,140.2,8.02884683]
[1768289215867,3.24635226,140.25,140.2,7.33262572]
[1768289216073,3.24635226,140.25,140.21,0.69622111]
[1768289217687,3.24635226,140.26,140.21,7.82833622]
[1768289217871,3.24635226,140.26,140.22,0.69622111]
[1768289219571,3.24635226,140.26,140.21,10.37846737]
[1768289220201,3.24635226,140.25,140.21,10.37846737]
[1768289220568,3.24635226,140.25,140.2,7.33263919]
[1768289220764,3.24635226,140.24,140.2,0.2]
[1768289221003,3.24635226,140.23,140.2,0.2]
[1768289221203,3.24635226,140.24,140.2,0.2]
[1768289221381,3.24635226,140.24,140.2,0.89622111]
[1768289222085,3.24635226,140.27,140.23,0.69622111]
[1768289222976,3.24635226,140.26,140.23,0.69622111]
[1768289227598,3.24635226,140.28,140.24,0.69307772]
[1768289227778,3.24635226,140.29,140.25,0.69307772]
[1768289234579,12.7,140.28,140.25,7.82305556]
[1768289234913,3.24635226,140.29,140.26,0.68924602]
[1768289235713,10.372965,140.32,140.27,0.68924602]
[1768289235885,3.24635226,140.31,140.27,0.68924602]
[1768289236082,3.24635226,140.3,140.27,0.68924602]
[1768289236272,10.372965,140.32,140.27,0.68924602]
[1768289236614,3.24635226,140.31,140.27,0.68924602]
[1768289240714,3.24635226,140.29,140.27,0.68924602]
[1768289243405,2.08327037,140.29,140.27,0.68924602]
[1768289244711,2.08327037,140.3,140.27,0.68924602]
[1768289247897,20.14612,140.33,140.27,7.81824969]
[1768289248103,2.08327037,140.3,140.27,7.81824969]
[1768289248613,2.08327037,140.31,140.27,7.81824969]
[1768289248918,2.08327037,140.32,140.28,0.68924602]
[1768289249108,22.22939037,140.33,140.28,2.77251639]
[1768289249617,2.08327037,140.32,140.28,0.68924602]
[1768289249917,2.08327037,140.32,140.28,7.81780393]
[1768289250794,2.08327037,140.33,140.29,0.68924602]
[1768289251117,2.08327037,140.34,140.3,0.68924602]
[1768289251920,2.08327037,140.34,140.3,7.81681529]
[1768289252296,2.08327037,140.34,140.31,0.68924602]
[1768289252615,2.08327037,140.34,140.31,0.50924602]
[1768289252926,2.26327037,140.34,140.3,7.12756927]
[1768289254125,2.1536663,140.33,140.29,7.12794363]
[1768289254813,2.1536663,140.33,140.29,7.83285738]
[1768289255517,0.07039593,140.33,140.29,7.83285738]
[1768289256102,2.08327037,140.34,140.3,0.70491375]
[1768289256303,7.30536852,140.35,140.3,0.70491375]
[1768289256622,2.08327037,140.34,140.3,0.70491375]
[1768289258027,2.15257037,140.34,140.3,0.70491375]
[1768289259213,2.15257037,140.34,140.3,7.83249362]
[1768289260127,2.08327037,140.36,140.31,0.70491375]
[1768289260128,0.18,140.36,140.31,0.70491375]
[1768289260301,2.26327037,140.36,140.32,0.70491375]
[1768289260818,0.099,140.35,140.32,0.70491375]
[1768289261325,2.18227037,140.35,140.32,0.70491375]
[1768289262122,0.099,140.35,140.32,0.70491375]
[1768289262319,2.18227037,140.35,140.32,0.70491375]
[1768289262519,2.26327037,140.36,140.32,7.83139969]
[1768289263625,2.26327037,140.36,140.32,0.70491375]
[1768289264428,2.26327037,140.36,140.32,7.83147529]
[1768289266318,2.26327037,140.36,140.33,0.70491375]
[1768289269830,0.18,140.36,140.33,0.70491375]
[1768289270013,2.26327037,140.36,140.33,0.70491375]
[1768289272936,2.26327037,140.36,140.32,0.70491375]
[1768289273321,0.099,140.39,140.32,0.70491375]
[1768289273526,0.17919,140.37,140.33,2.78818412]
[1768289273933,2.26327037,140.38,140.34,0.70491375]
[1768289275439,2.26327037,140.38,140.34,7.83027963]
[1768289276247,17.80499964,140.41,140.35,2.78818412]
[1768289276248,0.099,140.41,140.35,2.78818412]
[1768289276540,2.08327037,140.4,140.36,0.70491375]
[1768289276735,2.08327037,140.4,140.37,0.70491375]
[1768289277519,2.08327037,140.44,140.39,0.70491375]
[1768289277818,2.26246037,140.44,140.4,0.70491375]
[1768289278223,2.18307227,140.43,140.37,0.70491375]
[1768289278436,2.08327037,140.42,140.38,0.70491375]
[1768289279740,2.08327037,140.42,140.38,7.828394]
[1768289279941,2.08327037,140.41,140.38,0.70491375]
[1768289280350,0.18,140.44,140.4,2.78818412]
[1768289280642,2.36327037,140.45,140.41,0.70491375]
[1768289280947,9.4833,140.45,140.41,0.64491375]
[1768289281520,2.08327037,140.44,140.41,0.64491375]
[1768289282840,2.26305437,140.43,140.39,0.70491375]
[1768289283434,2.08327037,140.42,140.39,0.70491375]
[1768289284437,2.24188421,140.42,140.38,7.82834482]
[1768289284630,2.08327037,140.4,140.36,0.69074747]
[1768289284836,2.08327037,140.39,140.36,0.69074747]
[1768289285146,2.08327037,140.38,140.35,7.81564638]
[1768289285526,2.08327037,140.38,140.36,0.69074747]
[1768289286850,2.08327037,140.37,140.34,0.69074747]
[1768289287044,2.08327037,140.36,140.34,0.69074747]
[1768289287637,13.23720805,140.38,140.33,0.69074747]
[1768289287638,2.08327037,140.35,140.33,0.69074747]
[1768289291557,2.08327037,140.34,140.33,0.69074747]
[1768289291761,2.08327037,140.34,140.32,0.69074747]
[1768289292254,2.08327037,140.33,140.32,0.69074747]
[1768289294558,2.08327037,140.33,140.3,0.67445207]
[1768289295441,2.08327037,140.32,140.3,0.67445207]
[1768289300762,0.23322505,140.32,140.29,0.67445207]
[1768289300947,2.08327037,140.31,140.28,7.80297347]
[1768289303263,0.23322505,140.32,140.28,7.80297347]
[1768289303449,3.2546759,140.31,140.28,7.80297347]
[1768289303761,15.9546759,140.31,140.29,0.67445207]
[1768289303961,12.7,140.31,140.29,0.67445207]
[1768289304143,15.9546759,140.31,140.28,0.67445207]
[1768289304765,3.2546759,140.3,140.28,0.67445207]
[1768289305063,3.49188395,140.3,140.26,7.12945326]
[1768289305366,3.2546759,140.3,140.27,0.67445207]
[1768289305566,7.22619419,140.31,140.23,30.82753768]
[1768289305567,3.2546759,140.28,140.24,7.1303021]
[1768289305763,3.2546759,140.27,140.25,0.67445207]
[1768289306365,3.2546759,140.26,140.25,0.67445207]
[1768289306565,3.2546759,140.26,140.24,7.1303021]
[1768289306865,3.2546759,140.26,140.24,0.67445207]
[1768289310865,3.2546759,140.27,140.24,0.67445207]
[1768289311078,3.2546759,140.26,140.24,0.67445207]
[1768289311570,3.2546759,140.27,140.25,0.67445207]
[1768289314483,0.24,140.29,140.25,0.67445207]
[1768289314682,3.2546759,140.27,140.25,0.67445207]
[1768289319279,0.099,140.28,140.25,0.67445207]
[1768289319482,3.2546759,140.27,140.25,0.67445207]
[1768289320352,7.79554432,140.33,140.27,0.65771854]
[1768289320554,102.7,140.39,140.28,3.91239444]
[1768289320555,0.39204837,140.32,140.28,3.91239444]
[1768289320764,3.92366744,140.33,140.29,0.65771854]
[1768289320958,3.92366744,140.34,140.3,3.91239444]
[1768289321162,3.92366744,140.35,140.31,0.65771854]
[1768289321383,3.92366744,140.35,140.31,7.78475466]
[1768289321565,3.2546759,140.34,140.31,7.78475466]
[1768289321761,3.2546759,140.34,140.31,0.65771854]
[1768289322278,12.7,140.33,140.31,0.65771854]
[1768289322480,3.64672427,140.34,140.31,0.65771854]
[1768289323268,0.39204837,140.34,140.31,0.65771854]
[1768289324071,0.39204837,140.34,140.31,7.78474454]
[1768289324970,0.39204837,140.37,140.33,3.91239444]
[1768289325673,0.39204837,140.37,140.33,11.03826874]
[1768289326990,3.2546759,140.38,140.34,0.65771854]
[1768289327482,3.64672427,140.38,140.34,0.65771854]
[1768289327692,3.2546759,140.37,140.34,0.65771854]
[1768289332380,0.66622211,140.36,140.33,7.1258743]
[1768289332779,3.92366744,140.37,140.33,7.78359284]
[1768289333090,3.92366744,140.37,140.34,0.65771854]
[1768289333295,3.2546759,140.37,140.34,0.65771854]
[1768289333668,3.64672427,140.37,140.33,7.1258743]
[1768289333869,3.64672427,140.37,140.34,0.65771854]
[1768289343706,3.2546759,140.37,140.34,0.65771854]
[1768289347511,3.2546759,140.38,140.34,0.65771854]
[1768289347711,7.48343142,140.39,140.34,0.65771854]
[1768289348014,3.2546759,140.38,140.34,0.65771854]
[1768289348530,3.2546759,140.36,140.34,0.65771854]
[1768289348816,3.2546759,140.36,140.32,7.12642113]
[1768289349712,3.95571911,140.36,140.31,10.38161521]
[1768289349911,3.95571911,140.35,140.31,7.12693931]
[1768289350915,3.95571911,140.35,140.32,0.69003269]
[1768289351215,3.2546759,140.34,140.32,0.69003269]
[1768289351399,3.95571911,140.34,140.31,0.69003269]
[1768289351701,3.2546759,140.33,140.31,0.69003269]
[1768289357918,0.70104321,140.34,140.31,0.69003269]
[1768289358095,3.95571911,140.34,140.31,0.69003269]
[1768289359722,1.7,140.33,140.31,0.69003269]
[1768289360020,3.95571911,140.34,140.31,0.69003269]
[1768289360524,16.95213716,140.35,140.32,0.66869214]
[1768289362206,13.69746126,140.35,140.32,0.66869214]
[1768289362520,16.95213716,140.35,140.32,0.66869214]
[1768289363023,3.95213716,140.35,140.32,0.66869214]
[1768289363401,0.69746126,140.35,140.32,0.66869214]
[1768289364017,3.95213716,140.35,140.32,0.66869214]
[1768289364612,2.4,140.34,140.32,0.66869214]
[1768289366026,3.09746126,140.34,140.31,7.79569336]
[1768289369823,0.69746126,140.33,140.31,7.12700122]
[1768289374321,0.69746126,140.33,140.3,9.20916592]
[1768289374931,0.69746126,140.33,140.31,0.70216275]
[1768289379733,0.69746126,140.33,140.29,9.91181543]
[1768289379931,2.77921842,140.33,140.3,0.70216275]
[1768289380231,2.08175716,140.33,140.3,0.70216275]
[1768289381731,2.78609813,140.33,140.3,0.70216275]
[1768289384530,9.91218981,140.33,140.3,0.70216275]
[1768289385721,2.78609813,140.31,140.28,0.70216275]
[1768289386038,2.08175716,140.3,140.28,0.70216275]
[1768289387539,2.08175716,140.29,140.27,0.70216275]
[1768289387741,2.08175716,140.29,140.25,7.83219586]
[1768289387742,0.70434097,140.28,140.25,7.83219586]
[1768289387947,0.5636327,140.28,140.25,7.83219586]
[1768289390340,0.5636327,140.28,140.26,7.12958352]
[1768289390735,2.08175716,140.29,140.27,0.70216275]
[1768289390940,2.78609813,140.3,140.27,0.70216275]
[1768289391436,2.08175716,140.3,140.27,0.70216275]
[1768289400248,2.08175716,140.3,140.28,0.70216275]
[1768289400543,2.08175716,140.29,140.28,0.70216275]
[1768289401334,2.08175716,140.3,140.28,0.70216275]
[1768289405146,2.08175716,140.32,140.28,0.70216275]
[1768289405322,2.08175716,140.3,140.28,0.70216275]
[1768289405759,0.70674854,140.33,140.29,0.71005822]
[1768289405931,2.08175716,140.32,140.29,0.71005822]
[1768289406826,2.08175716,140.32,140.3,0.71005822]
[1768289407547,0.70674854,140.34,140.3,0.71005822]
[1768289407743,2.7885057,140.34,140.3,0.71005822]
[1768289408355,2.7885057,140.35,140.3,2.79181538]
[1768289408549,2.7885057,140.36,140.31,2.79181538]
[1768289408861,7.83095526,140.37,140.32,0.71005822]
[1768289409046,2.7885057,140.37,140.33,0.71005822]
[1768289409239,0.70674854,140.36,140.32,9.20831324]
[1768289409847,2.7885057,140.37,140.32,9.20831324]
[1768289410850,2.7885057,140.36,140.31,7.12691279]
[1768289411152,0.70674854,140.35,140.31,9.20866995]
[1768289411353,0.70674854,140.35,140.31,9.91660146]
[1768289412143,2.7885057,140.35,140.31,9.91660146]
[1768289412569,0.70674854,140.35,140.31,9.91660146]
[1768289416736,0.70674854,140.35,140.32,7.83426892]
[1768289417062,2.08175716,140.36,140.32,7.83426892]
[1768289417063,2.7812813,140.36,140.33,0.70793151]
[1768289418560,2.7812813,140.36,140.32,7.83426892]
[1768289418864,2.7812813,140.36,140.33,0.70793151]
[1768289420062,2.7812813,140.36,140.33,0.64793151]
[1768289420752,2.7812813,140.35,140.32,7.12633741]
[1768289421054,0.69952414,140.34,140.32,7.12633741]
[1768289421256,2.7812813,140.35,140.32,7.12633741]
[1768289422150,2.7812813,140.35,140.32,7.77426892]
[1768289422642,0.69952414,140.35,140.32,7.77426892]
[1768289423868,2.7812813,140.37,140.33,0.64793151]
[1768289424259,0.69952414,140.36,140.33,0.64793151]
[1768289424557,4.59952414,140.36,140.33,0.64793151]
[1768289426459,4.59952414,140.36,140.32,0.64793151]
[1768289426761,0.69952414,140.35,140.32,0.64793151]
[1768289427565,0.69952414,140.35,140.32,7.77436513]
[1768289428065,0.69952414,140.35,140.31,0.64793151]
[1768289428362,3.95162563,140.35,140.31,0.64793151]
[1768289429037,3.95162563,140.35,140.31,7.77498152]
[1768289429462,3.95162563,140.35,140.31,11.02708301]
[1768289429666,0.69952414,140.35,140.31,11.02708301]
[1768289430165,0.69952414,140.35,140.31,10.3791515]
[1768289432069,0.69952414,140.35,140.31,28.84477241]
[1768289434774,0.69952414,140.35,140.33,7.12606]
[1768289434953,0.69952414,140.35,140.33,7.06606]
[1768289435576,7.84879258,140.36,140.33,7.06606]
[1768289438481,3.9,140.36,140.34,0.64793151]
[1768289438652,3.94879258,140.39,140.35,3.900033]
[1768289438975,3.94879258,140.39,140.35,3.840033]
[1768289439156,3.94879258,140.39,140.35,0.58793151]
[1768289439350,0.69669109,140.38,140.35,0.58793151]
[1768289440790,0.69669109,140.38,140.35,0.52793151]
[1768289441283,0.69669109,140.38,140.35,7.65282565]
[1768289453867,0.69669109,140.38,140.35,7.12489414]
[1768289454374,0.69669109,140.37,140.35,7.12489414]
[1768289457794,0.69669109,140.37,140.34,7.12555223]
[1768289458095,0.69669109,140.37,140.34,10.37765372]
[1768289458998,0.69669109,140.37,140.34,10.90558523]
[1768289459199,3.94879258,140.38,140.35,0.52793151]
[1768289459496,3.94879258,140.37,140.33,0.52793151]
[1768289459688,3.94879258,140.35,140.31,0.52793151]
[1768289459892,0.69669109,140.34,140.31,0.52793151]
[1768289460800,0.69669109,140.34,140.31,7.6549763]
[1768289461908,3.94879258,140.33,140.29,7.6560074]
[1768289462081,3.94879258,140.31,140.27,7.65688479]
[1768289462279,3.13924765,140.31,140.27,7.65688479]
[1768289462479,3.25210149,140.3,140.27,7.65688479]
[1768289463785,3.25210149,140.32,140.27,7.65688479]
[1768289464106,3.25210149,140.3,140.27,7.65688479]
[1768289465607,3.25210149,140.3,140.28,0.69853328]
[1768289466086,3.94879258,140.31,140.28,0.69853328]
[1768289469389,3.94879258,140.31,140.28,7.8271142]
[1768289471709,0.68781443,140.3,140.27,7.12910814]
[1768289471910,0.65781444,140.3,140.27,7.82764142]
[1768289473090,3.25210149,140.31,140.28,7.82705521]
[1768289473994,3.93991592,140.31,140.28,7.82705521]
[1768289475513,3.9415906,140.3,140.27,7.12892211]
[1768289475811,3.9415906,140.3,140.27,7.84647995]
[1768289476200,3.25210149,140.3,140.28,7.84606938]
[1768289476398,3.9415906,140.31,140.28,7.84606938]
[1768289477717,3.9415906,140.29,140.27,0.71755784]
[1768289477913,3.9415906,140.29,140.26,7.84700943]
[1768289478815,0.68948911,140.29,140.26,7.84700943]
[1768289478997,0.65948912,140.29,140.26,7.84700943]
[1768289480814,3.25210149,140.3,140.27,0.71755784]
[1768289481516,3.9415906,140.3,140.27,0.71755784]
[1768289482124,3.9415906,140.3,140.27,7.84664041]
[1768289483000,3.25210149,140.3,140.28,0.71755784]
[1768289487324,2.08308857,140.3,140.28,0.71755784]
[1768289488518,2.77257768,140.31,140.28,0.71755784]
[1768289488720,0.68948911,140.32,140.29,0.71755784]
[1768289488942,2.08308857,140.33,140.29,0.71755784]
[1768289489125,0.68948911,140.34,140.3,0.71755784]
[1768289489426,2.77257768,140.34,140.3,0.71755784]
[1768289489618,0.68948911,140.33,140.3,0.71755784]
[1768289489818,12.7,140.32,140.3,0.71755784]
[1768289490002,0.68948911,140.33,140.3,0.71755784]
[1768289490204,0.68948911,140.32,140.29,0.71755784]
[1768289490724,2.77257768,140.32,140.29,0.71755784]
[1768289490927,0.68948911,140.32,140.29,7.8454946]
[1768289491907,0.68948911,140.34,140.3,0.71755784]
[1768289492109,2.77257768,140.34,140.31,0.71755784]
[1768289492315,0.68948911,140.33,140.3,0.71755784]
[1768289493003,0.68948911,140.33,140.3,7.84512302]
[1768289493239,0.68948911,140.33,140.3,0.71755784]
[1768289493743,2.77257768,140.33,140.3,0.71755784]
[1768289494230,2.77257768,140.33,140.3,7.84513038]
[1768289494817,0.65645719,140.35,140.31,0.69250221]
[1768289495022,2.73954576,140.34,140.31,0.69250221]
[1768289495230,15.43954576,140.34,140.31,0.69250221]
[1768289495622,0.65645719,140.33,140.3,7.82007475]
[1768289496841,0.65645719,140.32,140.28,15.79559078]
[1768289497138,2.73954576,140.3,140.27,0.69250221]
[1768289497325,2.73954576,140.29,140.26,0.69250221]
[1768289497916,0.65645719,140.29,140.26,0.69250221]
[1768289499327,0.65645719,140.32,140.27,0.69250221]
[1768289499531,2.73954576,140.31,140.27,0.69250221]
[1768289500649,2.73954576,140.31,140.27,7.82119154]
[1768289501848,2.73954576,140.3,140.27,7.82119154]
[1768289502346,0.65645719,140.29,140.27,7.12868933]
[1768289503340,2.73954576,140.3,140.27,7.12868933]
[1768289503732,2.73954576,140.3,140.27,0.69250221]
[1768289505033,0.65645719,140.29,140.26,7.12961642]
[1768289505239,2.73954576,140.29,140.26,7.12961642]
[1768289505448,2.73954576,140.29,140.26,7.82211863]
[1768289508249,0.65645719,140.29,140.26,7.82211863]
[1768289512051,0.65645719,140.29,140.25,20.15001892]
[1768289512259,0.65645719,140.29,140.25,20.84252113]
[1768289512260,0.65645719,140.28,140.25,20.84252113]
[1768289512650,0.65645719,140.28,140.25,20.15001892]
[1768289513549,0.65645719,140.28,140.25,22.23310749]
[1768289513750,0.65645719,140.28,140.26,7.12942201]
[1768289515553,0.65645719,140.28,140.25,13.02]
[1768289517070,0.65645719,140.28,140.25,20.1499839]
[1768289518059,0.65645719,140.28,140.25,20.84248611]
[1768289518450,0.65645719,140.3,140.26,0.69250221]
[1768289518673,2.73954576,140.3,140.26,0.69250221]
[1768289520469,2.73954576,140.3,140.26,7.82186903]
[1768289520641,0.65645719,140.29,140.26,7.82186903]
[1768289521467,2.73954576,140.29,140.26,7.82186903]
[1768289528376,0.65645719,140.29,140.26,7.82186903]
[1768289541386,2.73954576,140.29,140.26,7.82186903]
[1768289546793,0.65645719,140.29,140.26,7.12936682]
[1768289547187,2.7624561,140.3,140.27,0.70199599]
[1768289547867,0.67936753,140.3,140.27,0.70199599]
[1768289548173,2.7624561,140.3,140.27,0.70199599]
[1768289548375,0.67936753,140.29,140.27,0.70199599]
[1768289548592,0.64936754,140.29,140.27,0.70199599]
[1768289548768,0.64936754,140.29,140.27,7.83094248]
[1768289551086,3.93425117,140.3,140.27,7.83094248]
[1768289553092,0.67936753,140.32,140.29,0.70199599]
[1768289556809,0.67936753,140.32,140.29,7.83007252]
[1768289560287,7.12572959,140.34,140.3,3.25488364]
[1768289560288,0.71577658,140.34,140.3,3.25488364]
[1768289560490,0.69016971,140.34,140.31,3.25488364]
[1768289562195,0.69016971,140.34,140.32,0.71573612]
[1768289562400,0.69016971,140.34,140.31,10.38176696]
[1768289562596,0.69016971,140.34,140.31,11.09750308]
[1768289564185,0.69016971,140.34,140.32,0.71573612]
[1768289564782,0.71577658,140.35,140.32,0.71573612]
[1768289567695,0.71577658,140.34,140.32,0.71573612]
[1768289568317,3.97066022,140.34,140.32,0.71573612]
[1768289568614,3.97066022,140.34,140.31,0.71573612]
[1768289572321,0.71577658,140.34,140.31,0.71573612]
[1768289572512,3.97066022,140.34,140.31,0.71573612]
[1768289572822,0.71577658,140.34,140.31,0.71573612]
[1768289573511,0.71577658,140.34,140.3,10.37808352]
[1768289574321,3.94066023,140.34,140.31,0.65449331]
[1768289575936,3.25488364,140.34,140.3,11.03257683]
[1768289576103,0.71577658,140.33,140.3,10.37808352]
[1768289579834,7.12398607,140.38,140.32,3.97061976]
[1768289580026,3.25488364,140.37,140.32,3.97061976]
[1768289581535,3.25488364,140.37,140.32,11.09692072]
[1768289581836,0.71577658,140.36,140.32,11.09692072]
[1768289582336,0.71577658,140.35,140.32,7.12630096]
[1768289583522,0.71577658,140.35,140.33,0.71573612]
[1768289584918,0.71577658,140.35,140.32,7.12630096]
[1768289585833,0.71577658,140.35,140.32,7.82580044]
[1768289586018,3.97117977,140.36,140.33,0.69949948]
[1768289592142,0.71629613,140.33,140.29,0.69949948]
[1768289592321,3.25488364,140.33,140.29,0.69949948]
[1768289592637,3.25488364,140.32,140.29,0.69949948]
[1768289592846,3.25488364,140.32,140.29,7.12808988]
[1768289594322,0.67270667,140.31,140.29,7.12808988]
[1768289594521,0.64270668,140.31,140.29,7.12808988]
[1768289594741,0.61270669,140.31,140.29,7.12808988]
[1768289595937,3.25488364,140.34,140.3,0.6881351]
[1768289596336,3.22928861,140.34,140.3,0.6881351]
[1768289596738,3.90199528,140.34,140.3,0.6881351]
[1768289597046,3.90199528,140.34,140.3,7.81540119]
[1768289597648,0.67270667,140.33,140.3,7.81540119]
[1768289602455,0.67270667,140.34,140.31,0.6881351]
[1768289605552,3.25488364,140.35,140.31,0.6881351]
[1768289605753,3.92759031,140.35,140.31,0.6881351]
[1768289606360,0.67270667,140.34,140.31,0.6881351]
[1768289612364,0.67270667,140.32,140.29,0.6881351]
[1768289613266,2.75458969,140.32,140.29,0.6881351]
[1768289613473,2.75458969,140.33,140.29,0.6881351]
[1768289615777,0.67614735,140.32,140.29,7.81622246]
[1768289616160,0.67614735,140.3,140.28,0.66857388]
[1768289616352,2.75803037,140.3,140.27,0.66857388]
[1768289616862,2.75803037,140.29,140.26,0.66857388]
[1768289620080,2.08188302,140.28,140.26,0.66857388]
[1768289620266,2.05188303,140.28,140.26,0.66857388]
[1768289620672,2.02188304,140.28,140.26,0.66857388]
[1768289622273,2.75803037,140.27,140.24,7.79920708]
[1768289622481,2.72803038,140.27,140.24,7.79920708]
[1768289623583,2.08188302,140.26,140.24,7.79920708]
[1768289624264,2.72803038,140.27,140.24,7.79920708]
[1768289624770,7.12768738,140.3,140.23,13.02]
[1768289624771,2.75803037,140.26,140.23,0.66857388]
[1768289626263,2.75803037,140.25,140.22,0.66857388]
[1768289626797,2.75803037,140.24,140.22,0.66857388]
[1768289626966,2.03362728,140.23,140.21,7.8005938]
[1768289627169,2.75803037,140.24,140.21,7.8005938]
[1768289634789,2.08188302,140.24,140.22,0.66857388]
[1768289635110,2.75803037,140.25,140.22,0.66857388]
[1768289636098,2.08188302,140.24,140.22,0.66857388]
[1768289638083,2.75803037,140.25,140.22,0.66857388]
[1768289639104,2.75803037,140.25,140.22,7.80021666]
[1768289639308,2.75803037,140.26,140.23,0.66857388]
[1768289639512,2.08188302,140.26,140.24,0.66857388]
[1768289640006,2.75803037,140.26,140.24,0.66857388]
[1768289640382,2.75803037,140.26,140.23,7.7992534]
[1768289641901,0.67614735,140.3,140.25,0.66857388]
[1768289642105,2.75803037,140.3,140.26,0.66857388]
[1768289643006,0.67614735,140.3,140.27,0.66857388]
[1768289643217,2.08188302,140.3,140.27,0.66857388]
[1768289643410,2.75803037,140.3,140.27,0.66857388]
[1768289643587,0.67614735,140.29,140.27,0.66857388]
[1768289643990,0.67614735,140.28,140.25,7.12995892]
[1768289644188,2.75803037,140.28,140.25,7.12995892]
[1768289644390,0.67614735,140.27,140.25,7.12995892]
[1768289645618,0.66030913,140.3,140.25,7.83516354]
[1768289645797,2.74219215,140.28,140.25,7.83516354]
[1768289646113,0.66030913,140.28,140.25,7.83516354]
[1768289647909,0.66030913,140.3,140.27,2.08188302]
[1768289648098,0.66030913,140.3,140.27,0.70520462]
[1768289648298,0.66030913,140.3,140.26,0.70520462]
[1768289648608,0.66030913,140.29,140.25,9.91705266]
[1768289650308,0.66030913,140.3,140.27,2.78708764]
[1768289651012,0.66030913,140.3,140.26,9.91641157]
[1768289651207,0.66030913,140.3,140.27,0.70520462]
[1768289651707,0.66030913,140.3,140.27,2.78708764]
[1768289653423,0.66030913,140.31,140.28,2.78708764]
[1768289654023,0.66030913,140.31,140.28,0.70520462]
[1768289655734,0.72360163,140.3,140.27,0.66449892]
[1768289656627,0.72360163,140.3,140.27,7.79356461]
[1768289659920,2.80548465,140.3,140.27,7.79356461]
[1768289661139,0.72360163,140.29,140.26,20.81398605]